bitfinex-derivatives/quotes_BTCF0:USTF0_20241003
["timestamp","ask_amount","ask_price","bid_price","bid_amount"]
[1727946374075,0.08277,60406.0,60395.0,0.06561423]
[1727946374076,0.443578,60399.0,60395.0,0.06561423]
[1727946374280,0.443578,60399.0,60389.0,1.5]
[1727946374281,0.44,60396.0,60392.0,0.06561423]
[1727946374477,0.082786,60393.0,60392.0,0.06561423]
[1727946374678,0.082786,60393.0,60391.0,0.06561423]
[1727946374872,0.11023357,60392.0,60389.0,0.082791]
[1727946375186,0.082791,60390.0,60380.0,0.44]
[1727946375368,0.21340932,60381.0,60380.0,0.522804]
[1727946375569,0.32364289,60381.0,60380.0,0.522804]
[1727946375791,0.32363907,60381.0,60380.0,0.082804]
[1727946376276,0.11023357,60381.0,60380.0,0.082804]
[1727946376474,0.3236311,60381.0,60380.0,0.082804]
[1727946376785,0.11023357,60381.0,60380.0,0.099374]
[1727946377183,0.11223584,60381.0,60380.0,0.01657]
[1727946377381,0.19503884,60381.0,60380.0,0.01657]
[1727946377689,0.13563947,60381.0,60380.0,0.01657]
[1727946377979,0.19503884,60381.0,60380.0,0.00583938]
[1727946378195,0.19503884,60381.0,60373.0,0.1313618]
[1727946378196,1.65267884,60381.0,60373.0,0.1313618]
[1727946378384,0.522807,60378.0,60373.0,0.1313618]
[1727946378580,1.49412412,60378.0,60373.0,0.1313618]
[1727946378790,0.082812,60374.0,60373.0,0.1313618]
[1727946378988,0.19304784,60374.0,60373.0,0.11854685]
[1727946379288,1.28996784,60374.0,60373.0,0.11854685]
[1727946379590,0.95104912,60374.0,60373.0,0.11854685]
[1727946379787,1.55104912,60374.0,60373.0,0.11854685]
[1727946380285,1.28996784,60374.0,60373.0,0.11854685]
[1727946380480,1.35793237,60374.0,60373.0,0.12154685]
[1727946380686,0.082817,60371.0,60370.0,0.15026687]
[1727946380888,0.19305284,60371.0,60370.0,0.14778232]
[1727946381074,0.26101737,60371.0,60370.0,0.14778232]
[1727946381274,0.17822,60371.0,60370.0,0.14778232]
[1727946381489,0.261037,60371.0,60370.0,0.14778232]
[1727946381985,0.082818,60370.0,60368.0,0.00584]
[1727946382176,0.002,60374.0,60368.0,0.00584]
[1727946382177,0.261039,60369.0,60368.0,0.00584]
[1727946382782,0.03110627,60374.0,60368.0,0.15951771]
[1727946382985,0.002,60374.0,60370.0,0.09889207]
[1727946383186,0.082815,60372.0,60371.0,0.12625821]
[1727946384187,0.082815,60372.0,60368.0,0.08825693]
[1727946384188,1.179735,60372.0,60368.0,0.08825693]
[1727946384489,1.179735,60372.0,60354.0,0.36554]
[1727946384490,0.579737,60371.0,60367.0,0.06593271]
[1727946384679,0.082822,60367.0,60358.0,0.09889207]
[1727946384876,0.08283,60362.0,60359.0,0.12627766]
[1727946385075,0.002,60372.0,60371.0,0.001]
[1727946385281,0.084815,60372.0,60371.0,0.001]
[1727946385577,0.00528,60372.0,60371.0,0.12825731]
[1727946385782,0.086815,60372.0,60371.0,0.12825731]
[1727946386588,0.086815,60372.0,60371.0,0.002]
[1727946386789,0.084815,60372.0,60371.0,0.001]
[1727946386986,0.086815,60372.0,60371.0,0.002]
[1727946387688,0.084815,60372.0,60371.0,0.001]
[1727946387882,1.181735,60372.0,60371.0,0.001]
[1727946388284,1.181735,60372.0,60357.0,0.00248496]
[1727946388285,1.09892,60372.0,60358.0,0.09888999]
[1727946388591,0.082834,60358.0,60357.0,0.00248496]
[1727946388783,0.082834,60358.0,60357.0,0.22764675]
[1727946389284,0.29,60368.0,60357.0,0.22764675]
[1727946389597,0.082822,60367.0,60358.0,0.1302718]
[1727946389784,0.29,60368.0,60358.0,0.1302718]
[1727946389785,0.1336829,60366.0,60358.0,0.004]
[1727946389979,0.05085925,60365.0,60358.0,0.004]
[1727946390279,0.082823,60366.0,60358.0,0.004]
[1727946390280,0.082833,60359.0,60358.0,0.004]
[1727946390481,0.42369225,60359.0,60358.0,0.0024714]
[1727946390691,0.48312164,60359.0,60358.0,0.0024714]
[1727946391193,0.082834,60358.0,60357.0,0.0064291]
[1727946391385,0.34769103,60358.0,60357.0,0.0064291]
[1727946391891,0.69016264,60358.0,60357.0,0.002]
[1727946392088,0.082837,60356.0,60355.0,0.01658]
[1727946392295,0.13369625,60356.0,60355.0,0.01658]
[1727946392590,1.29016564,60356.0,60355.0,0.01658]
[1727946392982,0.19312564,60356.0,60355.0,0.01658]
[1727946393185,0.34755067,60356.0,60355.0,0.01658]
[1727946393888,0.13769625,60356.0,60355.0,0.01758]
[1727946394598,0.14269625,60356.0,60355.0,0.01758]
[1727946395303,0.082854,60344.0,60342.0,0.082856]
[1727946395486,0.05085925,60343.0,60342.0,0.082856]
[1727946395792,0.082852,60346.0,60343.0,0.082855]
[1727946395995,0.23176874,60346.0,60336.0,1.57274]
[1727946396293,0.18089916,60346.0,60345.0,0.082852]
[1727946396482,0.05086955,60346.0,60345.0,0.082852]
[1727946396995,0.07813711,60346.0,60345.0,0.082852]
[1727946397296,0.07813711,60346.0,60342.0,0.02058]
[1727946397483,0.082855,60343.0,60342.0,0.02558]
[1727946397691,0.05086955,60343.0,60342.0,0.108436]
[1727946397895,0.18089916,60345.0,60344.0,0.082854]
[1727946398493,0.18089916,60345.0,60344.0,1.582854]
[1727946398692,0.18089916,60345.0,60344.0,0.082854]
[1727946399192,0.18089916,60345.0,60344.0,0.084854]
[1727946399398,0.26375116,60345.0,60344.0,0.084854]
[1727946399695,0.55375116,60345.0,60344.0,0.002]
[1727946400007,0.18089916,60345.0,60344.0,0.084854]
[1727946400385,0.18089916,60345.0,60344.0,0.087854]
[1727946401604,0.18089916,60345.0,60344.0,0.377854]
[1727946401996,0.18089916,60345.0,60344.0,0.087854]
[1727946402194,0.082852,60345.0,60344.0,0.087854]
[1727946402703,0.11005557,60349.0,60348.0,0.082848]
[1727946402999,0.082848,60349.0,60348.0,0.082848]
[1727946403199,0.082848,60349.0,60344.0,0.005]
[1727946403404,0.082852,60345.0,60344.0,0.005]
[1727946403595,0.082852,60345.0,60344.0,0.087854]
[1727946403803,0.082852,60345.0,60342.0,0.01658]
[1727946403804,0.082855,60343.0,60342.0,0.01658]
[1727946403996,0.082855,60343.0,60342.0,0.099436]
[1727946404994,0.082855,60343.0,60342.0,0.01658]
[1727946405196,0.082855,60343.0,60342.0,0.02258]
[1727946406005,0.08285,60347.0,60342.0,0.02258]
[1727946406307,0.082855,60343.0,60342.0,0.02658]
[1727946406807,0.082851,60346.0,60342.0,0.02658]
[1727946406998,0.082854,60344.0,60342.0,0.02658]
[1727946408104,0.38775946,60349.0,60347.0,0.082849]
[1727946408308,0.38775946,60349.0,60342.0,0.02258]
[1727946408309,0.38775946,60349.0,60346.0,0.08285]
[1727946408604,0.082848,60348.0,60342.0,0.02658]
[1727946408807,0.38775946,60349.0,60342.0,0.02658]
[1727946409113,0.082855,60344.0,60342.0,0.02658]
[1727946410005,0.082849,60348.0,60342.0,0.103436]
[1727946410214,0.38775946,60349.0,60346.0,0.001]
[1727946410401,0.02695946,60349.0,60348.0,0.082848]
[1727946410706,0.3608,60354.0,60352.0,0.082842]
[1727946411104,0.3608,60354.0,60353.0,0.082841]
[1727946411407,0.082834,60359.0,60355.0,0.082838]
[1727946411608,0.02912291,60360.0,60359.0,0.082833]
[1727946412812,0.082834,60359.0,60356.0,1.50084]
[1727946413014,0.082836,60357.0,60356.0,1.5]
[1727946413200,0.082841,60353.0,60352.0,0.3608]
[1727946413404,0.05085566,60353.0,60342.0,0.01658]
[1727946413604,0.29,60346.0,60342.0,0.01658]
[1727946413907,0.05085566,60345.0,60343.0,0.082855]
[1727946414107,0.05085566,60347.0,60343.0,0.082855]
[1727946414314,0.05085566,60346.0,60343.0,0.082855]
[1727946414513,0.05085566,60345.0,60343.0,0.082855]
[1727946414711,0.05085566,60345.0,60344.0,0.3648]
[1727946415503,0.05085566,60345.0,60344.0,0.3668]
[1727946415700,0.13370766,60345.0,60344.0,0.006]
[1727946417002,0.05085566,60345.0,60344.0,0.088854]
[1727946417310,0.2146179,60345.0,60344.0,0.088854]
[1727946417506,0.32489799,60345.0,60344.0,0.378854]
[1727946417707,0.26547356,60345.0,60344.0,0.378854]
[1727946418018,0.05085566,60345.0,60344.0,0.378854]
[1727946418223,0.05085566,60345.0,60344.0,2.976014]
[1727946418921,0.05085566,60345.0,60344.0,2.974014]
[1727946419218,0.05185566,60345.0,60344.0,2.988014]
[1727946419609,0.05185566,60345.0,60344.0,2.984014]
[1727946419916,0.001,60345.0,60344.0,2.995014]
[1727946420117,0.02758273,60353.0,60352.0,0.082843]
[1727946420418,0.082841,60353.0,60352.0,0.082843]
[1727946420723,0.082847,60350.0,60344.0,1.815]
[1727946420906,0.082847,60350.0,60344.0,1.813]
[1727946421309,0.082847,60350.0,60344.0,1.802]
[1727946421510,0.38833264,60356.0,60344.0,1.802]
[1727946421721,0.3608,60356.0,60355.0,0.082839]
[1727946422017,0.3608,60363.0,60355.0,0.082839]
[1727946422018,0.02762806,60360.0,60359.0,0.08283]
[1727946422221,0.3608,60363.0,60359.0,0.29]
[1727946422414,0.08283,60362.0,60360.0,0.082831]
[1727946422608,0.3608,60363.0,60360.0,0.082831]
[1727946422609,0.08283,60361.0,60360.0,0.082831]
[1727946422809,0.082835,60358.0,60356.0,0.01658]
[1727946423015,0.38861072,60363.0,60356.0,0.01658]
[1727946423320,0.082836,60357.0,60356.0,0.01658]
[1727946423915,0.869876,60357.0,60356.0,0.01658]
[1727946424216,0.08285,60347.0,60344.0,0.096753]
[1727946424416,0.29,60352.0,60344.0,0.01]
[1727946424614,0.082842,60353.0,60348.0,0.082848]
[1727946424810,0.082845,60351.0,60348.0,0.082848]
[1727946425012,0.3608,60358.0,60346.0,0.29]
[1727946425213,0.3608,60358.0,60357.0,0.082836]
[1727946425524,0.082822,60367.0,60365.0,0.082825]
[1727946425713,0.082825,60365.0,60360.0,0.29]
[1727946425921,0.11237185,60369.0,60365.0,0.082824]
[1727946426120,0.08530605,60369.0,60365.0,0.082824]
[1727946426321,0.08530605,60369.0,60362.0,0.082829]
[1727946426322,0.082823,60366.0,60362.0,0.082829]
[1727946426830,0.00248605,60369.0,60362.0,0.082829]
[1727946427129,0.082825,60365.0,60362.0,0.082829]
[1727946427317,0.082825,60365.0,60361.0,1.50084]
[1727946427514,0.29,60362.0,60353.0,0.3608]
[1727946427726,0.082843,60352.0,60350.0,0.01658]
[1727946427920,0.372844,60351.0,60350.0,0.01658]
[1727946428121,0.082844,60351.0,60350.0,0.01658]
[1727946428828,0.372844,60351.0,60350.0,0.01658]
[1727946429334,0.3608,60357.0,60350.0,0.02158]
[1727946429534,0.082843,60352.0,60350.0,0.02158]
[1727946430126,0.38747322,60357.0,60350.0,0.02158]
[1727946430425,0.082828,60363.0,60354.0,0.08284]
[1727946430620,0.082828,60363.0,60355.0,0.29]
[1727946431231,0.3608,60364.0,60355.0,0.29]
[1727946431420,0.4712873,60364.0,60355.0,0.372838]
[1727946431620,0.1104873,60364.0,60358.0,0.3608]
[1727946431923,0.0276613,60364.0,60358.0,0.3608]
[1727946432130,0.3608,60370.0,60358.0,0.3608]
[1727946432435,0.082825,60365.0,60358.0,0.3608]
[1727946432634,0.003,60364.0,60354.0,0.002]
[1727946432934,0.003,60364.0,60357.0,0.082835]
[1727946433131,0.001,60363.0,60361.0,0.29]
[1727946433333,0.001,60363.0,60361.0,0.372829]
[1727946433522,0.001,60363.0,60362.0,1.5]
[1727946433723,0.003,60364.0,60362.0,1.5]
[1727946434021,0.00248605,60369.0,60362.0,1.5]
[1727946434222,0.082828,60363.0,60362.0,1.5]
[1727946434423,0.084828,60363.0,60362.0,1.5]
[1727946435024,0.084828,60363.0,60362.0,0.001]
[1727946435025,0.17625916,60363.0,60362.0,0.001]
[1727946436135,0.42568498,60363.0,60362.0,0.001]
[1727946436332,0.08284,60354.0,60350.0,0.01658]
[1727946436538,0.082844,60351.0,60350.0,0.01658]
[1727946436734,0.13370098,60351.0,60350.0,0.01658]
[1727946438029,0.13670098,60351.0,60350.0,0.01658]
[1727946438245,0.524151,60351.0,60350.0,0.01658]
[1727946438532,0.526151,60351.0,60350.0,0.01658]
[1727946438726,0.58557698,60351.0,60350.0,0.01658]
[1727946438932,0.082865,60336.0,60335.0,0.0039]
[1727946439134,0.082867,60335.0,60330.0,0.082872]
[1727946439333,0.18131068,60332.0,60331.0,1.5]
[1727946439636,0.082873,60330.0,60326.0,0.08536343]
[1727946439823,0.05085698,60329.0,60326.0,0.08536343]
[1727946440027,0.082876,60328.0,60326.0,0.00248643]
[1727946440223,0.05085698,60329.0,60326.0,0.00248643]
[1727946440224,0.11714398,60327.0,60326.0,0.00248643]
[1727946440431,0.082888,60319.0,60315.0,0.3608]
[1727946440631,0.29,60322.0,60315.0,0.3608]
[1727946440836,0.082877,60327.0,60306.0,0.0039]
[1727946440837,0.29,60318.0,60306.0,0.0039]
[1727946441134,0.066307,60313.0,60302.0,0.00248722]
[1727946441326,0.066307,60313.0,60302.0,0.08539822]
[1727946441533,0.21429517,60317.0,60312.0,0.01659]
[1727946441725,0.3608,60319.0,60315.0,0.004]
[1727946441935,0.05942598,60318.0,60316.0,0.29]
[1727946442236,0.21429517,60323.0,60322.0,0.082884]
[1727946442426,0.19770517,60323.0,60322.0,1.231004]
[1727946442633,1e-08,60323.0,60322.0,1.74812]
[1727946442926,0.3608,60338.0,60336.0,0.01659]
[1727946443130,0.082859,60340.0,60336.0,0.01659]
[1727946443340,0.00248723,60341.0,60336.0,0.01659]
[1727946443526,0.00248723,60341.0,60339.0,0.08286]
[1727946444037,0.002,60338.0,60336.0,0.01659]
[1727946444738,0.082862,60338.0,60336.0,0.01659]
[1727946445126,0.082863,60337.0,60336.0,0.01659]
[1727946445332,0.082863,60337.0,60336.0,0.02259]
[1727946445831,0.082863,60337.0,60336.0,0.02659]
[1727946446232,0.082876,60328.0,60327.0,0.3608]
[1727946446434,0.29,60328.0,60322.0,0.00248661]
[1727946446747,0.082881,60324.0,60322.0,0.00248661]
[1727946447035,0.082882,60323.0,60322.0,0.00248661]
[1727946447238,0.29,60323.0,60320.0,0.01659]
[1727946447436,0.082885,60321.0,60320.0,0.01659]
[1727946447835,0.082885,60321.0,60308.0,0.0039]
[1727946447836,0.082895,60314.0,60308.0,0.0039]
[1727946448140,0.29,60311.0,60302.0,0.00248722]
[1727946448340,0.29,60307.0,60302.0,0.00248722]
[1727946448644,0.082912,60302.0,60292.0,0.3608]
[1727946448945,0.29,60298.0,60292.0,0.3608]
[1727946449135,0.08292,60296.0,60294.0,0.0166]
[1727946449630,0.08292,60296.0,60281.0,0.29]
[1727946449631,0.08292,60296.0,60274.0,0.3692]
[1727946449632,0.082937,60283.0,60274.0,0.3692]
[1727946449835,0.08294,60282.0,60274.0,0.3608]
[1727946450338,0.29,60283.0,60278.0,0.01908842]
[1727946450339,0.082942,60280.0,60278.0,0.01908842]
[1727946450840,0.082942,60280.0,60278.0,0.0166]
[1727946451047,0.082952,60273.0,60264.0,0.0039]
[1727946451234,0.082952,60273.0,60262.0,0.082966]
[1727946451235,0.29,60268.0,60260.0,0.3608]
[1727946451434,0.3608,60279.0,60264.0,0.29]
[1727946451732,0.3608,60279.0,60278.0,0.011]
[1727946451931,0.3608,60279.0,60278.0,0.021]
[1727946452341,0.3608,60279.0,60278.0,0.092944]
[1727946452847,0.001,60280.0,60279.0,0.082943]
[1727946453032,0.3608,60303.0,60295.0,0.082921]
[1727946453433,0.082913,60301.0,60295.0,0.082921]
[1727946453738,0.52540892,60296.0,60290.0,0.082928]
[1727946453942,0.44248892,60296.0,60290.0,0.082928]
[1727946454637,0.46048892,60296.0,60295.0,0.002]
[1727946454836,0.54340892,60296.0,60295.0,0.002]
[1727946455138,0.53740892,60296.0,60295.0,0.001]
[1727946455333,0.53240892,60296.0,60286.0,0.099533]
[1727946455532,0.44,60290.0,60286.0,0.0166]
[1727946455737,0.082931,60288.0,60286.0,0.0166]
[1727946456131,0.3608,60289.0,60286.0,0.0166]
[1727946457039,0.082932,60287.0,60286.0,0.0166]
[1727946457233,0.082938,60283.0,60274.0,0.082949]
[1727946457428,0.9608,60289.0,60274.0,0.082949]
[1727946457429,0.44,60277.0,60274.0,0.082949]
[1727946457644,0.44,60277.0,60273.0,0.3608]
[1727946457841,0.44,60277.0,60272.0,0.0166]
[1727946458545,0.44,60277.0,60274.0,0.014]
[1727946458546,0.441,60277.0,60274.0,0.014]
[1727946459042,0.442,60277.0,60274.0,0.014]
[1727946459342,0.002,60277.0,60274.0,0.014]
[1727946459647,0.082941,60281.0,60274.0,0.09695]
[1727946459842,0.36200001,60283.0,60274.0,0.014]
[1727946460145,0.36200001,60283.0,60272.0,0.0306]
[1727946460146,0.36208,60289.0,60284.0,0.082936]
[1727946460447,0.36208,60289.0,60275.0,0.44]
[1727946460448,0.3608,60289.0,60275.0,0.44]
[1727946460636,0.001,60277.0,60276.0,0.082947]
[1727946460942,0.3608,60289.0,60276.0,0.082947]
[1727946460943,0.3608,60289.0,60288.0,0.082931]
[1727946461943,0.3608,60289.0,60284.0,0.003]
[1727946462139,0.3608,60289.0,60284.0,0.085936]
[1727946462344,0.082935,60285.0,60284.0,0.003]
[1727946462737,0.44,60288.0,60276.0,0.01]
[1727946463044,0.3608,60289.0,60277.0,0.082945]
[1727946463343,0.3608,60289.0,60288.0,0.082931]
[1727946463744,0.3628,60289.0,60288.0,0.082931]
[1727946464153,0.002,60289.0,60288.0,0.082931]
[1727946464337,0.00248892,60296.0,60285.0,0.0166]
[1727946464534,0.002,60289.0,60285.0,0.0166]
[1727946464739,0.883733,60286.0,60285.0,0.0166]
[1727946465039,0.3608,60286.0,60285.0,0.0166]
[1727946466350,0.082933,60286.0,60285.0,0.0166]
[1727946466840,0.03243062,60289.0,60285.0,0.0166]
[1727946467040,0.001,60286.0,60285.0,0.0166]
[1727946467240,0.001,60286.0,60285.0,0.099535]
[1727946467445,0.006,60286.0,60285.0,0.099535]
[1727946467940,0.006,60286.0,60285.0,1.599535]
[1727946468139,0.082917,60298.0,60285.0,2.37504]
[1727946468338,0.082906,60306.0,60285.0,2.37504]
[1727946468339,0.08292,60296.0,60290.0,0.082927]
[1727946468539,0.44,60302.0,60285.0,1.8794]
[1727946468845,0.082917,60298.0,60285.0,1.8794]
[1727946469048,0.082917,60298.0,60296.0,0.082919]
[1727946469248,0.082911,60303.0,60298.0,0.082916]
[1727946469543,0.44,60308.0,60294.0,0.082922]
[1727946469745,0.00248847,60309.0,60293.0,0.3608]
[1727946469746,0.082911,60302.0,60293.0,0.3608]
[1727946469944,0.08292,60296.0,60293.0,0.3608]
[1727946470340,0.08292,60296.0,60293.0,0.443724]
[1727946470945,0.08292,60296.0,60295.0,0.082921]
[1727946470946,0.002,60296.0,60295.0,0.082921]
[1727946471550,0.08992,60296.0,60293.0,0.3608]
[1727946471945,0.007,60296.0,60293.0,0.3608]
[1727946472151,0.082922,60294.0,60293.0,0.3608]
[1727946472846,0.082911,60302.0,60293.0,0.3618]
[1727946473050,0.44,60311.0,60297.0,0.082918]
[1727946473253,0.522899,60311.0,60297.0,0.082918]
[1727946473550,0.29,60303.0,60297.0,0.082918]
[1727946473750,0.005,60296.0,60295.0,0.082921]
[1727946473940,0.3608,60310.0,60306.0,0.082905]
[1727946474145,0.29,60314.0,60306.0,0.082905]
[1727946474341,0.082901,60310.0,60303.0,0.3608]
[1727946474545,0.082894,60315.0,60311.0,0.082899]
[1727946474751,0.3608,60317.0,60315.0,0.082893]
[1727946474943,0.3608,60317.0,60303.0,0.42671256]
[1727946474944,0.3608,60317.0,60316.0,0.082892]
[1727946475252,0.00248794,60320.0,60313.0,0.42671256]
[1727946475449,0.00248794,60320.0,60319.0,0.443688]
[1727946476154,0.3608,60336.0,60319.0,0.443688]
[1727946476155,0.082869,60333.0,60328.0,0.082875]
[1727946476456,0.082869,60333.0,60329.0,0.082873]
[1727946476846,0.082878,60327.0,60325.0,0.08288]
[1727946477046,0.44,60335.0,60324.0,0.00084]
[1727946477249,0.082868,60334.0,60320.0,0.06595433]
[1727946477453,0.006,60333.0,60329.0,0.082874]
[1727946477750,0.006,60333.0,60332.0,0.08287]
[1727946479049,0.082862,60338.0,60333.0,0.082868]
[1727946479757,0.082865,60336.0,60333.0,0.082868]
[1727946479950,0.80212001,60340.0,60332.0,0.001]
[1727946479951,0.36212001,60340.0,60332.0,0.001]
[1727946480152,0.36212001,60340.0,60330.0,0.3608]
[1727946480153,0.3608,60340.0,60339.0,0.08286]
[1727946480460,0.082852,60345.0,60333.0,0.001]
[1727946480961,0.082849,60348.0,60344.0,0.082854]
[1727946481149,0.83235002,60351.0,60332.0,0.0049]
[1727946481349,0.83235002,60351.0,60331.0,0.44]
[1727946481350,0.082847,60350.0,60338.0,0.082861]
[1727946481652,0.082847,60349.0,60331.0,0.44]
[1727946481856,0.83243001,60351.0,60336.0,0.44]
[1727946481857,0.36448682,60351.0,60336.0,0.44]
[1727946482151,0.00248681,60351.0,60349.0,0.082845]
[1727946482350,0.44,60351.0,60343.0,0.0166]
[1727946482556,0.3608,60358.0,60343.0,0.0166]
[1727946482557,0.443654,60344.0,60343.0,0.0166]
[1727946483952,0.445654,60344.0,60343.0,0.0166]
[1727946484262,0.942814,60344.0,60343.0,0.0166]
[1727946484461,0.942814,60344.0,60343.0,0.0176]
[1727946484462,1.542814,60344.0,60343.0,0.0176]
[1727946484762,0.082872,60331.0,60328.0,0.0039]
[1727946484950,0.44,60333.0,60326.0,0.00248641]
[1727946485253,0.44,60333.0,60327.0,0.082876]
[1727946485454,0.44,60333.0,60329.0,0.082874]
[1727946485654,0.44,60333.0,60326.0,0.00248641]
[1727946485655,0.522869,60333.0,60326.0,0.00248641]
[1727946486050,0.08287,60332.0,60326.0,0.08536341]
[1727946486448,0.441,60333.0,60326.0,0.00248641]
[1727946486661,0.001,60333.0,60331.0,0.082871]
[1727946487159,0.082866,60335.0,60326.0,0.00548641]
[1727946487359,0.44,60328.0,60326.0,0.02207641]
[1727946487553,0.082877,60327.0,60326.0,0.01907641]
[1727946487745,0.082877,60327.0,60326.0,0.01659]
[1727946488162,0.13376653,60327.0,60326.0,0.01659]
[1727946488354,0.13376653,60327.0,60326.0,0.01759]
[1727946488550,0.05088953,60327.0,60326.0,0.01759]
[1727946488746,0.1641028,60332.0,60330.0,0.082872]
[1727946489057,0.05088848,60331.0,60326.0,0.100468]
[1727946489250,0.13376148,60330.0,60326.0,0.01759]
[1727946489451,0.05088848,60329.0,60326.0,0.01759]
[1727946489647,0.05088848,60328.0,60326.0,0.01759]
[1727946489851,0.05088848,60327.0,60326.0,0.01759]
[1727946490060,0.29786828,60327.0,60326.0,0.01859]
[1727946490363,0.29786828,60327.0,60326.0,0.01759]
[1727946490364,0.13476548,60327.0,60326.0,0.01759]
[1727946490564,1.77352543,60327.0,60326.0,0.01759]
[1727946490782,1.77352543,60327.0,60312.0,0.0039]
[1727946490783,1.93714626,60327.0,60312.0,0.0039]
[1727946490948,1.93714626,60327.0,60310.0,0.00248709]
[1727946490949,0.522895,60314.0,60310.0,0.00248709]
[1727946491258,0.05088848,60313.0,60312.0,0.01659]
[1727946492256,0.05088848,60313.0,60312.0,0.099488]
[1727946492459,0.17997832,60316.0,60312.0,1.196888]
[1727946492651,0.17997832,60322.0,60314.0,0.44]
[1727946492858,0.17997832,60322.0,60321.0,0.082885]
[1727946493052,0.17997832,60322.0,60314.0,0.44]
[1727946493053,0.17997832,60326.0,60325.0,0.08288]
[1727946493256,0.3698,60327.0,60315.0,0.082893]
[1727946493454,0.3698,60327.0,60314.0,0.44]
[1727946493455,0.54094483,60327.0,60314.0,0.44]
[1727946493656,0.001,60313.0,60312.0,0.099488]
[1727946494163,0.001,60313.0,60312.0,1.196888]
[1727946494460,0.18014483,60322.0,60319.0,0.082887]
[1727946494647,0.18014483,60322.0,60312.0,0.01659]
[1727946494852,0.06946171,60326.0,60322.0,0.082884]
[1727946494853,0.18014483,60323.0,60322.0,0.082884]
[1727946495049,0.18014483,60324.0,60322.0,0.082884]
[1727946495360,0.18014483,60324.0,60323.0,0.082882]
[1727946495755,0.26302583,60324.0,60323.0,0.082882]
[1727946495953,0.082882,60323.0,60322.0,0.06595433]
[1727946496259,0.082882,60323.0,60321.0,0.06595433]
[1727946496562,0.082882,60323.0,60322.0,0.14883833]
[1727946496759,0.001,60323.0,60322.0,0.082884]
[1727946497353,0.005,60323.0,60320.0,0.08244291]
[1727946497549,0.005,60323.0,60316.0,0.3608]
[1727946497550,0.082889,60318.0,60316.0,0.08244291]
[1727946497755,0.082896,60313.0,60310.0,0.08244291]
[1727946497955,0.082896,60313.0,60312.0,0.0824496]
[1727946499160,0.082903,60308.0,60307.0,0.04941671]
[1727946499368,0.082903,60308.0,60302.0,0.01659]
[1727946499369,0.29,60305.0,60302.0,0.01659]
[1727946499663,0.08291,60303.0,60302.0,0.01659]
[1727946500161,1.18039,60303.0,60302.0,0.01659]
[1727946500551,1.18039,60303.0,60302.0,0.01859]
[1727946500762,0.08292,60296.0,60291.0,0.0658596]
[1727946500957,0.29,60294.0,60292.0,0.0658596]
[1727946501158,0.29,60294.0,60291.0,0.0658596]
[1727946501365,0.29,60294.0,60292.0,0.0658596]
[1727946501560,0.082921,60295.0,60293.0,0.0658596]
[1727946501756,0.3618,60303.0,60293.0,0.0658596]
[1727946501957,0.44471,60303.0,60297.0,0.082918]
[1727946502157,0.44471,60303.0,60302.0,0.001]
[1727946502158,0.48236072,60303.0,60302.0,0.001]
[1727946502357,1.93693072,60303.0,60294.0,0.0658596]
[1727946502673,0.082922,60294.0,60293.0,0.0658596]
[1727946503159,0.082922,60294.0,60288.0,0.08293]
[1727946503358,0.082922,60294.0,60278.0,0.082943]
[1727946503359,0.44,60297.0,60278.0,0.082943]
[1727946503768,0.4234,60289.0,60273.0,0.36328858]
[1727946503968,0.082931,60288.0,60273.0,0.36328858]
[1727946504360,0.082931,60288.0,60281.0,0.08294]
[1727946504564,0.082931,60288.0,60286.0,0.0166]
[1727946505064,0.3608,60290.0,60286.0,0.0166]
[1727946505364,0.44,60299.0,60291.0,0.082926]
[1727946505365,0.3608,60296.0,60291.0,0.082926]
[1727946505557,0.3608,60296.0,60286.0,0.0166]
[1727946505759,0.082911,60302.0,60293.0,0.001]
[1727946506260,0.082911,60302.0,60296.0,0.082919]
[1727946506657,0.082915,60300.0,60296.0,0.082919]
[1727946506867,0.082915,60300.0,60286.0,0.0166]
[1727946507062,0.082915,60300.0,60292.0,0.082925]
[1727946507264,0.086911,60302.0,60286.0,0.0166]
[1727946507265,0.44,60293.0,60286.0,0.0166]
[1727946507463,0.44,60287.0,60286.0,0.0166]
[1727946508060,0.522932,60287.0,60286.0,0.0166]
[1727946508662,0.082932,60287.0,60286.0,0.0166]
[1727946508864,0.44,60292.0,60287.0,0.082931]
[1727946509070,0.3608,60296.0,60287.0,0.082931]
[1727946509263,0.3608,60296.0,60286.0,0.0186]
[1727946509264,0.082922,60294.0,60288.0,0.08293]
[1727946509660,0.082922,60294.0,60289.0,0.082929]
[1727946509880,0.3608,60296.0,60288.0,0.44]
[1727946510172,0.0039,60309.0,60293.0,0.44]
[1727946510359,0.44371,60303.0,60297.0,0.082917]
[1727946510678,0.44371,60303.0,60291.0,0.4266596]
[1727946510679,0.082914,60300.0,60291.0,0.4266596]
[1727946510873,0.001,60294.0,60291.0,0.4266596]
[1727946511174,0.001,60294.0,60293.0,0.082924]
[1727946511767,0.002,60294.0,60293.0,0.082924]
[1727946512272,0.001,60294.0,60293.0,0.082924]
[1727946512475,0.082914,60300.0,60294.0,0.082921]
[1727946512967,0.44,60301.0,60291.0,0.3608]
[1727946513168,0.082916,60299.0,60293.0,0.084923]
[1727946513373,0.082917,60298.0,60293.0,0.084923]
[1727946513574,0.082916,60299.0,60293.0,0.083923]
[1727946513769,0.3608,60303.0,60293.0,0.001]
[1727946513973,0.3608,60303.0,60293.0,0.0658596]
[1727946513974,0.002,60300.0,60293.0,0.0658596]
[1727946514166,0.44248806,60318.0,60311.0,0.082898]